fUSD/lending_fUSD_20260417
["ID","MTS","AMOUNT","RATE_DAILY","PERIOD"]
[420648510,1776423040364,-460.86021662,9.657e-05,2]
[420648511,1776423040373,-332.0,9.671e-05,3]
[420648512,1776423040383,-187.78006525,9.677e-05,2]
[420648513,1776423040392,-1377.42282659,9.691e-05,2]
[420648514,1776423040403,-736.91,9.696e-05,2]
[420648515,1776423040413,-5411.58022302,9.711e-05,2]
[420648516,1776423040422,-150.0,9.72e-05,2]
[420648517,1776423040432,-974.7691259,9.742e-05,2]
[420648518,1776423040441,-5981.2986009,9.752e-05,2]
[420648519,1776423040453,-11143.2796703,9.752e-05,2]
[420648520,1776423040462,-852.0,9.753e-05,2]
[420648521,1776423040471,-1556.0,9.753e-05,2]
[420648522,1776423040480,-150.0,9.763e-05,2]
[420648523,1776423040490,-10989.5438577,9.764e-05,2]
[420648525,1776423040499,-151.0,9.764e-05,2]
[420648526,1776423040508,-3523.3962017,9.795e-05,2]
[420648527,1776423040518,-1129.2068799,9.798e-05,2]
[420648528,1776423040527,-4522.90171,9.8e-05,2]
[420648529,1776423040536,-3737.856828,9.8e-05,2]
[420648530,1776423040546,-1786.953934,9.8e-05,2]
[420648531,1776423040556,-899.1456607,9.841e-05,2]
[420648532,1776423040565,-1295.08869395,9.9e-05,2]
[420648533,1776423040577,-767.54052114,9.9e-05,2]
[420648534,1776423040588,-2339.00000007,9.9e-05,2]
[420648536,1776423041358,-515.76908484,9.9e-05,2]
[420648537,1776423041368,-6200.0,9.9e-05,3]
[420648538,1776423041377,-341.76029074,9.9e-05,2]
[420648539,1776423041386,-736.92562408,9.97e-05,2]
[420648540,1776423041395,-300.0,9.973e-05,2]
[420648541,1776423041404,-7122.0,9.973e-05,2]
[420648542,1776423041414,-762.601866,9.973e-05,2]
[420648543,1776423041423,-762.601866,9.973e-05,2]
[420648544,1776423041433,-762.601866,9.973e-05,2]
[420648545,1776423041442,-762.601866,9.973e-05,2]
[420648546,1776423041452,-217.5003911,9.991e-05,2]
[420648547,1776423041461,-10000.0,9.999e-05,2]
[420648548,1776423041471,-15299.55886459,0.0001,2]
[420648549,1776423041480,-1000.0,0.0001,2]
[420648550,1776423041489,-358.09393378,0.0001,2]
[420648551,1776423041499,-1810.29832829,0.0001,3]
[420648552,1776423041508,-300.0,0.0001,2]
[420648553,1776423041517,-1224.38741713,0.0001,2]
[420648554,1776423041527,-151.0,0.0001,2]
[420648555,1776423041536,-1000.0,0.0001,2]
[420648556,1776423041545,-1000.0,0.0001,2]
[420648557,1776423041555,-1000.0,0.0001,2]
[420648558,1776423041564,-1000.0,0.0001,2]
[420648559,1776423041573,-1000.0,0.0001,2]
[420648560,1776423041583,-1000.0,0.0001,2]
[420648561,1776423041592,-1000.0,0.0001,2]
[420648562,1776423041602,-1000.0,0.0001,2]
[420648563,1776423041611,-1000.0,0.0001,2]
[420648564,1776423041620,-1000.0,0.0001,2]
[420648565,1776423041629,-1000.0,0.0001,2]
[420648566,1776423041638,-1000.0,0.0001,2]
[420648567,1776423041648,-1000.0,0.0001,2]
[420648568,1776423041657,-1000.0,0.0001,2]
[420648569,1776423041667,-1000.0,0.0001,2]
[420648570,1776423041676,-1000.0,0.0001,2]
[420648571,1776423041686,-1000.0,0.0001,2]
[420648572,1776423041695,-1000.0,0.0001,2]
[420648573,1776423041704,-1000.0,0.0001,2]
[420648574,1776423041714,-1000.0,0.0001,2]
[420648575,1776423041723,-1000.0,0.0001,2]
[420648576,1776423041733,-1000.0,0.0001,2]
[420648577,1776423041743,-1000.0,0.0001,2]
[420648578,1776423041752,-75954.93056055,0.0001,2]
[420648579,1776423041780,-7975.57521875,0.0001,2]
[420648580,1776423041793,-808.0336,0.0001,2]
[420648581,1776423041879,-139440.03816767,0.0001,2]
[420648602,1776423047512,-321.16848906,8.595e-05,7]
[420648605,1776423047524,-78.83151094,8.595e-05,7]
[420648607,1776423047534,-198.99801,8.6e-05,2]
[420648609,1776423047543,-500.0,8.704e-05,3]
[420648611,1776423047552,-6028.0,9.267e-05,2]
[420648613,1776423047562,-165.5996,9.5e-05,2]
[420648615,1776423047571,-4717.10338801,0.0001,2]
[420648617,1776423047584,-19190.54575114,0.0001,2]
[420648619,1776423047596,-9662.01918308,0.0001,2]
[420648620,1776423047666,-361.92091814,0.0001,2]
[420648621,1776423047678,-8711.38060063,0.0001,2]
[420648622,1776423047693,-316.220239,0.0001,2]
[420648623,1776423047704,-3735.0766933,0.0001,2]
[420648624,1776423047719,-14035.45352238,0.0001,2]
[420648625,1776423047731,-1530.16100112,0.0001,2]
[420648626,1776423047747,-783.45621829,0.0001,2]
[420648629,1776423048949,-327.365286,0.0001,2]
[420648630,1776423049490,-23039.71504557,0.0001,2]
[420648631,1776423049507,-252.82151545,0.0001,2]
[420648632,1776423049521,-89158.18309092,0.0001,2]
[420648633,1776423049531,-971.24996322,0.0001,2]
[420648634,1776423049541,-14776.0,0.0001,2]
[420648635,1776423049550,-153.16501295,0.0001,2]
[420648636,1776423049560,-1368.01472,0.0001,2]
[420648637,1776423049570,-1368.01472,0.0001,2]
[420648638,1776423049579,-1368.01471,0.0001,2]
[420648639,1776423049588,-1368.01472,0.0001,2]
[420648640,1776423049598,-1368.01472,0.0001,2]
[420648641,1776423049608,-1368.01471,0.0001,2]
[420648642,1776423049619,-266.5938425,0.0001,2]
[420648643,1776423049629,-500.0,0.0001,2]
[420648644,1776423049639,-200.0,0.0001,2]
[420648645,1776423049649,-500.0,0.0001,2]
[420648646,1776423049659,-500.0,0.0001,2]
[420648647,1776423049669,-511.72246464,0.0001,2]
[420648648,1776423049679,-1745.55125256,0.0001,2]
[420648649,1776423049689,-500.0,0.0001,2]
[420648650,1776423049698,-500.0,0.0001,2]
[420648651,1776423049714,-500.0,0.0001,2]
[420648652,1776423049723,-500.0,0.0001,2]
[420648653,1776423049733,-500.0,0.0001,2]
[420648654,1776423049743,-500.0,0.0001,2]
[420648655,1776423049752,-151.34953961,0.0001,2]
[420648656,1776423049762,-500.0,0.0001,2]
[420648657,1776423049772,-500.0,0.0001,2]
[420648658,1776423049782,-197.79686157,0.0001,2]
[420648659,1776423049791,-8200.0,0.0001,3]
[420648660,1776423049801,-762.601866,0.0001,2]
[420648661,1776423049811,-762.601866,0.0001,2]
[420648662,1776423049823,-762.601866,0.0001,2]
[420648663,1776423049833,-762.601866,0.0001,2]
[420648664,1776423049843,-650.336908,0.0001,2]
[420648665,1776423049853,-650.336908,0.0001,2]
[420648666,1776423049863,-650.336908,0.0001,2]
[420648667,1776423049873,-650.336908,0.0001,2]
[420648668,1776423049883,-650.336908,0.0001,2]
[420648669,1776423049892,-638.639769,0.0001,2]
[420648670,1776423049903,-650.336908,0.0001,2]
[420648671,1776423049912,-650.336908,0.0001,2]
[420648672,1776423049923,-650.336908,0.0001,2]
[420648673,1776423049933,-381.44588239,0.0001,2]
[420648674,1776423049943,-500.0,0.0001,2]
[420648675,1776423049952,-500.0,0.0001,2]
[420648676,1776423049962,-500.0,0.0001,2]
[420648677,1776423049972,-500.0,0.0001,2]
[420648678,1776423049982,-500.0,0.0001,2]
[420648679,1776423049992,-500.0,0.0001,2]
[420648680,1776423050002,-500.0,0.0001,2]
[420648681,1776423050012,-500.0,0.0001,2]
[420648682,1776423050022,-500.0,0.0001,2]
[420648683,1776423050031,-500.0,0.0001,2]
[420648684,1776423050041,-500.0,0.0001,2]
[420648685,1776423050050,-500.0,0.0001,2]
[420648686,1776423050060,-500.0,0.0001,2]
[420648687,1776423050070,-500.0,0.0001,2]
[420648688,1776423050080,-500.0,0.0001,2]
[420648689,1776423050089,-500.0,0.0001,2]
[420648690,1776423050102,-500.0,0.0001,2]
[420648691,1776423050112,-500.0,0.0001,2]
[420648692,1776423050122,-500.0,0.0001,2]
[420648693,1776423050131,-500.0,0.0001,2]
[420648694,1776423050140,-500.0,0.0001,2]
[420648695,1776423050150,-500.0,0.0001,2]
[420648696,1776423050160,-500.0,0.0001,2]
[420648697,1776423050169,-500.0,0.0001,2]
[420648698,1776423050179,-500.0,0.0001,2]
[420648699,1776423050188,-500.0,0.0001,2]
[420648700,1776423050198,-500.0,0.0001,2]
[420648701,1776423050208,-500.0,0.0001,2]
[420648702,1776423050218,-500.0,0.0001,2]
[420648703,1776423050228,-500.0,0.0001,2]
[420648704,1776423050237,-500.0,0.0001,2]
[420648705,1776423050247,-500.0,0.0001,2]
[420648706,1776423050257,-500.0,0.0001,2]
[420648707,1776423050267,-500.0,0.0001,2]
[420648708,1776423050276,-500.0,0.0001,2]
[420648709,1776423050286,-500.0,0.0001,2]
[420648710,1776423050296,-500.0,0.0001,2]
[420648711,1776423050305,-500.0,0.0001,2]
[420648712,1776423050315,-500.0,0.0001,2]
[420648713,1776423050328,-500.0,0.0001,2]
[420648714,1776423050337,-500.0,0.0001,2]
[420648715,1776423050347,-500.0,0.0001,2]
[420648716,1776423050357,-500.0,0.0001,2]
[420648717,1776423050367,-500.0,0.0001,2]
[420648718,1776423050377,-500.0,0.0001,2]
[420648719,1776423050388,-500.0,0.0001,2]
[420648720,1776423050398,-500.0,0.0001,2]
[420648721,1776423050409,-500.0,0.0001,2]
[420648722,1776423050419,-500.0,0.0001,2]
[420648723,1776423050429,-500.0,0.0001,2]
[420648724,1776423050439,-500.0,0.0001,2]
[420648725,1776423050450,-3821.0098921,0.00010009,2]
[420648726,1776423050461,-2452.0986809,0.00010017,2]
[420648727,1776423050471,-150.0,0.0001002,2]
[420648728,1776423050481,-786.1759587,0.00010053,2]
[420648729,1776423050491,-251.9601119,0.00010065,2]
[420648730,1776423050501,-345.64516247,0.00010068,2]
[420648731,1776423050512,-1579.3719962,0.00010074,2]
[420648732,1776423060009,2000.0,8.219e-05,2]
[420648733,1776423122667,150.0,8.241e-05,2]
[420648734,1776423127108,372.0,8.219e-05,3]
[420648735,1776423134101,-5000.0,8.53e-05,2]
[420648736,1776423134129,-61447.0,8.538e-05,2]
[420648738,1776423183014,200.0,8.219e-05,2]
[420648740,1776423192708,150.0,8.24e-05,2]
[420648741,1776423216456,298.09,0.00014669,30]
[420648742,1776423216521,596.18,0.00015564,30]
[420648743,1776423216582,894.27,0.0001646,30]
[420648744,1776423255247,150.0,8.238e-05,2]
[420648745,1776423308048,370.0,8.238e-05,3]
[420648746,1776423311381,158.0,8.238e-05,3]
[420648775,1776423323348,150.0,8.238e-05,2]
[420648780,1776423325723,275.33,0.00014625,30]
[420648781,1776423325803,550.65,0.00015518,30]
[420648782,1776423325989,825.98,0.00016411,30]
[420648783,1776423365943,352.0,8.238e-05,3]
[420648784,1776423390780,150.0,8.238e-05,2]
[420648785,1776423415618,254.3,0.00015916,30]
[420648788,1776423431129,334.0,8.238e-05,3]
[420648792,1776423432264,2000.0,7.714e-05,2]
[420648794,1776423462015,150.0,8.238e-05,2]
[420648795,1776423487275,318.0,8.238e-05,3]
[420648797,1776423528487,150.0,8.238e-05,2]
[420648798,1776423547124,302.0,8.238e-05,3]
[420648799,1776423600090,150.0,8.235e-05,2]
[420648800,1776423606405,158.0,8.238e-05,3]
[420648801,1776423607675,287.0,8.238e-05,3]
[420648804,1776423666872,150.0,8.233e-05,2]
[420648805,1776423666912,272.0,8.238e-05,3]
[420648806,1776423691214,251.06,0.00015956,30]
[420648826,1776423730431,259.0,8.238e-05,3]
[420648827,1776423735434,150.0,8.233e-05,2]
[420648829,1776423789211,246.0,8.238e-05,3]
[420648830,1776423803267,150.0,8.22e-05,2]
[420648831,1776423817368,150.0,0.0001649,30]
[420648832,1776423847540,233.0,8.238e-05,3]
[420648833,1776423871416,150.0,8.22e-05,2]
[420648835,1776423872469,166.79,7.946e-05,2]
[420648836,1776423872664,166.79,8.274e-05,2]
[420648839,1776423903246,150.00000001,7.718e-05,2]
[420648841,1776423908364,150.0,7.718e-05,2]
[420648842,1776423908587,150.0,7.718e-05,2]
[420648843,1776423908920,150.0,7.718e-05,2]
[420648844,1776423910962,150.0,7.718e-05,2]
[420648845,1776423911062,231.0,8.238e-05,3]
[420648846,1776423911095,150.0,7.718e-05,2]
[420648847,1776423911897,158.0,8.238e-05,3]
[420648849,1776423913370,150.0,7.718e-05,2]
[420648850,1776423914828,150.00000001,7.718e-05,2]
[420648851,1776423917134,150.0,7.718e-05,2]
[420648852,1776423917219,150.0,7.718e-05,2]
[420648853,1776423923854,201.29039859,7.718e-05,2]
[420648854,1776423923944,150.0,7.718e-05,2]
[420648855,1776423924104,150.0,7.718e-05,2]
[420648856,1776423924134,150.0,7.718e-05,2]
[420648859,1776423937078,150.0,8.22e-05,2]
[420648860,1776423939965,4921.13960139,8.219e-05,2]
[420648861,1776423939986,1019.48039861,8.219e-05,2]
[420648862,1776423965545,219.0,8.238e-05,3]
[420648863,1776423968757,5575.244449,7.945e-05,2]
[420648864,1776424070405,150.0,8.22e-05,2]
[420648865,1776424088255,208.0,8.238e-05,3]
[420648868,1776424136542,2828.28515239,7.714e-05,2]
[420648869,1776424136564,2387.28484761,7.714e-05,2]
[420648870,1776424141347,150.0,8.22e-05,2]
[420648871,1776424148743,176.0,8.238e-05,3]
[420648872,1776424191317,1163.5,7.714e-05,2]
[420648874,1776424206621,158.0,8.238e-05,3]
[420648878,1776424208859,150.0,8.22e-05,2]
[420648883,1776424225186,206.0,8.238e-05,3]
[420648894,1776424233133,161.0,8.238e-05,3]
[420648895,1776424233250,-500.0,8.337e-05,2]
[420648896,1776424233259,-632.01513129,8.432e-05,2]
[420648897,1776424233269,-163.78462658,8.436e-05,2]
[420648898,1776424233280,-136.21537342,8.436e-05,2]
[420648899,1776424233290,-300.0,8.436e-05,2]
[420648900,1776424233299,-1200.0,8.436e-05,2]
[420648901,1776424233308,-250.0,8.437e-05,2]
[420648902,1776424233317,-2175.60213677,8.437e-05,2]
[420648903,1776424233337,-1659.40517958,8.437e-05,2]
[420648904,1776424233346,-174.3756329,8.437e-05,2]
[420648905,1776424233355,-150.0,8.437e-05,2]
[420648906,1776424233364,-71099.9614,8.438e-05,2]
[420648907,1776424233373,-250.0,8.465e-05,2]
[420648908,1776424233383,-174.37563288,8.485e-05,2]
[420648909,1776424233392,-578.20924308,8.531e-05,2]
[420648910,1776424233402,-174.37563288,8.532e-05,2]
[420648911,1776424233412,-8565.75555911,8.533e-05,2]
[420648912,1776424233422,-151.0,8.533e-05,2]
[420648913,1776424233431,-174.61919141,8.533e-05,2]
[420648914,1776424233441,-211.40802048,8.533e-05,2]
[420648915,1776424233450,-219.23011724,8.533e-05,2]
[420648916,1776424233459,-227.34163157,8.533e-05,2]
[420648917,1776424233469,-235.75327194,8.533e-05,2]
[420648918,1776424233478,-244.476143,8.533e-05,2]
[420648919,1776424233487,-253.52176029,8.533e-05,2]
[420648920,1776424233497,-262.90206542,8.533e-05,2]
[420648921,1776424233507,-272.62944185,8.533e-05,2]
[420648922,1776424233517,-282.71673119,8.533e-05,2]
[420648923,1776424233527,-170.020817,8.533e-05,2]
[420648924,1776424233536,-621.78829552,8.533e-05,2]
[420648925,1776424233546,-858.00925184,8.537e-05,2]
[420648926,1776424233556,-500.0,8.537e-05,2]
[420648927,1776424233566,-500.0,8.537e-05,2]
[420648928,1776424233575,-500.0,8.537e-05,2]
[420648929,1776424233586,-500.0,8.537e-05,2]
[420648930,1776424233595,-500.0,8.537e-05,2]
[420648931,1776424233604,-500.0,8.537e-05,2]
[420648932,1776424233615,-500.0,8.537e-05,2]
[420648933,1776424233624,-500.0,8.537e-05,2]
[420648934,1776424233634,-500.0,8.537e-05,2]
[420648935,1776424233643,-500.0,8.537e-05,2]
[420648936,1776424233652,-500.0,8.537e-05,2]
[420648937,1776424233662,-500.0,8.537e-05,2]
[420648938,1776424233671,-500.0,8.537e-05,2]
[420648939,1776424233680,-500.0,8.537e-05,2]
[420648940,1776424233690,-500.0,8.537e-05,2]
[420648941,1776424233699,-500.0,8.537e-05,2]
[420648942,1776424233709,-500.0,8.537e-05,2]
[420648943,1776424233718,-500.0,8.537e-05,2]
[420648944,1776424233729,-500.0,8.537e-05,2]
[420648945,1776424233738,-500.0,8.537e-05,2]
[420648946,1776424233748,-500.0,8.537e-05,2]
[420648947,1776424233757,-500.0,8.537e-05,2]
[420648948,1776424233766,-500.0,8.537e-05,2]
[420648949,1776424233776,-500.0,8.537e-05,2]
[420648950,1776424233785,-500.0,8.537e-05,2]
[420648951,1776424233794,-500.0,8.537e-05,2]
[420648952,1776424233803,-500.0,8.537e-05,2]
[420648953,1776424233813,-500.0,8.537e-05,2]
[420648954,1776424233822,-500.0,8.537e-05,2]
[420648955,1776424233831,-500.0,8.537e-05,2]
[420648956,1776424233841,-274.2698808,8.537e-05,2]
[420648957,1776424233850,-500.0,8.537e-05,2]
[420648958,1776424233860,-500.0,8.537e-05,2]
[420648959,1776424233869,-500.0,8.537e-05,2]
[420648960,1776424233878,-500.0,8.537e-05,2]
[420648961,1776424233887,-500.0,8.537e-05,2]
[420648962,1776424233896,-500.0,8.537e-05,2]
[420648963,1776424233906,-500.0,8.537e-05,2]
[420648964,1776424233915,-500.0,8.537e-05,2]
[420648965,1776424233924,-500.0,8.537e-05,2]
[420648966,1776424233934,-500.0,8.537e-05,2]
[420648967,1776424233944,-500.0,8.537e-05,2]
[420648968,1776424233953,-500.0,8.537e-05,2]
[420648969,1776424233962,-500.0,8.537e-05,2]
[420648970,1776424233971,-500.0,8.537e-05,2]
[420648971,1776424233981,-500.0,8.537e-05,2]
[420648972,1776424233990,-500.0,8.537e-05,2]
[420648973,1776424234000,-400.0,8.537e-05,2]
[420648974,1776424234009,-500.0,8.537e-05,2]
[420648975,1776424234018,-500.0,8.537e-05,2]
[420648976,1776424234027,-500.0,8.537e-05,2]
[420648977,1776424234036,-500.0,8.537e-05,2]
[420648978,1776424234046,-500.0,8.537e-05,2]
[420648979,1776424234055,-500.0,8.537e-05,2]
[420648980,1776424234064,-500.0,8.537e-05,2]
[420648981,1776424234074,-90106.76649085,8.538e-05,2]
[420648982,1776424234087,-61098.08000356,8.538e-05,2]
[420648983,1776424234098,-12199.00510559,8.538e-05,2]
[420648984,1776424234108,-150.0,8.541e-05,2]
[420648985,1776424234118,-18270.8,8.541e-05,2]
[420648986,1776424234128,-150.99,8.541e-05,2]
[420648987,1776424234139,-500.0,8.573e-05,2]
[420648988,1776424234148,-167.8661672,8.573e-05,2]
[420648989,1776424234159,-500.0,8.573e-05,2]
[420648990,1776424234168,-500.0,8.573e-05,2]
[420648991,1776424234177,-500.0,8.573e-05,2]
[420648992,1776424234186,-500.0,8.573e-05,2]
[420648993,1776424234195,-500.0,8.573e-05,2]
[420648994,1776424234205,-150.0,8.575e-05,2]
[420648995,1776424234214,-2419.95251276,8.588e-05,2]
[420648996,1776424234223,-157.85100843,8.588e-05,2]
[420648997,1776424234233,-9999.99,8.595e-05,2]
[420648998,1776424234242,-2875.33903224,8.595e-05,2]
[420648999,1776424234254,-7124.65096776,8.595e-05,2]
[420649000,1776424234264,-999.99,8.595e-05,2]
[420649001,1776424234274,-299.99,8.595e-05,2]
[420649002,1776424234284,-1280.88388878,8.595e-05,2]
[420649003,1776424234293,-646.65982734,8.595e-05,2]
[420649004,1776424234303,-201.88453134,8.595e-05,2]
[420649005,1776424234312,-500.0,8.595e-05,2]
[420649006,1776424234321,-500.0,8.595e-05,2]
[420649007,1776424234331,-500.0,8.595e-05,2]
[420649008,1776424234340,-500.0,8.595e-05,2]
[420649009,1776424234350,-500.0,8.595e-05,2]
[420649010,1776424234359,-500.0,8.595e-05,2]
[420649011,1776424234368,-500.0,8.595e-05,2]
[420649012,1776424234377,-500.0,8.595e-05,2]
[420649013,1776424234386,-500.0,8.595e-05,2]
[420649014,1776424234395,-611.49090799,8.595e-05,2]
[420649015,1776424234404,-743.50770149,8.595e-05,2]
[420649016,1776424234413,-288.27939362,8.595e-05,2]
[420649017,1776424234422,-250.0,8.599e-05,2]
[420649018,1776424234432,-500.0,8.599e-05,2]
[420649019,1776424234441,-355.70290874,8.599e-05,2]
[420649020,1776424234451,-558.08096216,8.599e-05,2]
[420649021,1776424234460,-151.97411115,8.599e-05,2]
[420649022,1776424234470,-17470.1067,8.6e-05,2]
[420649023,1776424234479,-2627.9045,8.6e-05,2]
[420649024,1776424234488,-24455.4162842,8.6e-05,2]
[420649025,1776424234500,-780.47237278,8.6e-05,2]
[420649026,1776424234515,-1510.31,8.6e-05,2]
[420649027,1776424234534,-938.55,8.6e-05,2]
[420649042,1776424237760,-23828.98936924,8.338e-05,2]
[420649043,1776424237814,-1503.17647077,8.338e-05,2]
[420649044,1776424237925,-354.21191019,8.338e-05,2]
[420649045,1776424238145,-40760.5898498,8.338e-05,2]
[420649046,1776424238155,-10223.32790402,8.6e-05,2]
[420649047,1776424238166,-41736.37343625,8.6e-05,2]
[420649048,1776424238178,-400.0,8.6e-05,2]
[420649110,1776424240038,-2090.40897658,8.6e-05,2]
[420649111,1776424240115,-812.54420716,8.6e-05,2]
[420649143,1776424242800,-36316.67349706,8.6e-05,2]
[420649165,1776424244678,-966.5487,8.6e-05,2]
[420649174,1776424245751,-299.11968399,8.6e-05,2]
[420649187,1776424246830,-3746.03658828,8.6e-05,2]
[420649188,1776424246864,-2792.4705,8.6e-05,2]
[420649189,1776424272261,150.0,8.3e-05,2]
[420649197,1776424337799,150.0,8.22e-05,2]
[420649198,1776424389723,196.0,8.22e-05,3]
[420649199,1776424441829,500.0,7.714e-05,2]
[420649200,1776424446967,218.0,8.22e-05,3]
[420649201,1776424465883,150.0,8.22e-05,2]
[420649202,1776424494918,1891.4,7.714e-05,2]
[420649203,1776424512941,160.0,7.714e-05,3]
[420649206,1776424524667,160.0,7.714e-05,3]
[420649209,1776424567096,263.0,7.714e-05,3]
[420649213,1776424627086,250.0,7.714e-05,3]
[420649218,1776424652017,170.03,6.171e-05,2]
[420649219,1776424652256,170.03,6.943e-05,2]
[420649220,1776424652447,170.03,7.714e-05,2]
[420649222,1776424703613,237.0,7.714e-05,3]
[420649223,1776424746333,181.0,7.714e-05,3]
[420649224,1776424750167,1010.15,7.714e-05,2]
[420649225,1776424807252,159.0,7.714e-05,3]
[420649226,1776424809410,226.0,7.714e-05,3]
[420649227,1776424833425,157.89,8.219e-05,2]
[420649238,1776424870534,214.0,7.714e-05,3]
[420649240,1776424899511,7304.88,8.238e-05,2]
[420649241,1776424899536,10000.01,8.238e-05,2]
[420649242,1776424899560,10000.01,8.238e-05,2]
[420649243,1776424899589,10000.01,8.238e-05,2]
[420649244,1776424899611,10000.01,8.238e-05,2]
[420649245,1776424899634,3300.0175,8.238e-05,2]
[420649246,1776424902377,500.0,7.701e-05,2]
[420649247,1776424902562,-300.0,8.336e-05,2]
[420649248,1776424902584,-300.0,8.337e-05,2]
[420649249,1776424902606,-400.0,8.337e-05,2]
[420649250,1776424904577,-800.0,8.337e-05,2]
[420649251,1776424904599,-150.0,8.337e-05,2]
[420649252,1776424904622,-50.0,8.337e-05,2]
[420649253,1776424904884,-100.0,8.337e-05,2]
[420649254,1776424904906,-900.0,8.337e-05,2]
[420649255,1776424905385,-1000.0,8.337e-05,2]
[420649256,1776424905996,-1000.0,8.337e-05,2]
[420649257,1776424906053,-1000.0,8.337e-05,2]
[420649258,1776424906312,-595.285,8.337e-05,2]
[420649259,1776424906335,-250.0,8.338e-05,2]
[420649260,1776424906361,-154.715,8.338e-05,2]
[420649261,1776424906720,-1000.0,8.338e-05,2]
[420649262,1776424907025,-1000.0,8.338e-05,2]
[420649263,1776424907549,-1000.0,8.338e-05,2]
[420649264,1776424908052,-1000.0,8.338e-05,2]
[420649265,1776424908566,-1000.0,8.338e-05,2]
[420649266,1776424909151,-1000.0,8.338e-05,2]
[420649267,1776424909565,-1000.0,8.338e-05,2]
[420649268,1776424909911,-1000.0,8.338e-05,2]
[420649269,1776424910266,-1000.0,8.338e-05,2]
[420649270,1776424910639,-1000.0,8.338e-05,2]
[420649271,1776424911148,-1000.0,8.338e-05,2]
[420649272,1776424911358,-1000.0,8.338e-05,2]
[420649273,1776424911721,-1000.0,8.338e-05,2]
[420649274,1776424913966,-1000.0,8.338e-05,2]
[420649275,1776424914001,-1000.0,8.338e-05,2]
[420649276,1776424914086,-1000.0,8.338e-05,2]
[420649277,1776424914190,-1000.0,8.338e-05,2]
[420649278,1776424914298,-1000.0,8.338e-05,2]
[420649279,1776424914398,-1000.0,8.338e-05,2]
[420649280,1776424914509,-1000.0,8.338e-05,2]
[420649281,1776424915469,-1000.0,8.338e-05,2]
[420649282,1776424915972,-1000.0,8.338e-05,2]
[420649283,1776424917075,-1000.0,8.338e-05,2]
[420649284,1776424917197,-1000.0,8.338e-05,2]
[420649285,1776424917265,-1000.0,8.338e-05,2]
[420649286,1776424917650,-1000.0,8.338e-05,2]
[420649287,1776424950624,-1000.0,8.338e-05,2]
[420649288,1776424952529,-1000.0,8.338e-05,2]
[420649289,1776424953140,-1000.0,8.338e-05,2]
[420649290,1776424953839,-1000.0,8.338e-05,2]
[420649291,1776424953903,-1000.0,8.338e-05,2]
[420649292,1776424953996,-1000.0,8.338e-05,2]
[420649293,1776424954372,-1000.0,8.338e-05,2]
[420649294,1776424954718,-1000.0,8.338e-05,2]
[420649295,1776424955065,-1000.0,8.338e-05,2]
[420649296,1776424955368,300.0,0.000165,120]
[420649297,1776424955410,-1000.0,8.338e-05,2]
[420649298,1776424955778,-1000.0,8.338e-05,2]
[420649299,1776424956093,-1000.0,8.338e-05,2]
[420649300,1776424956537,-1000.0,8.338e-05,2]
[420649301,1776424957039,-1000.0,8.338e-05,2]
[420649302,1776424957526,-1000.0,8.338e-05,2]
[420649303,1776424958640,-1000.0,8.338e-05,2]
[420649304,1776424958726,-1000.0,8.338e-05,2]
[420649305,1776424958784,-1000.0,8.338e-05,2]
[420649306,1776424959531,-1000.0,8.338e-05,2]
[420649307,1776424963396,-1000.0,8.338e-05,2]
[420649308,1776424965558,-1000.0,8.338e-05,2]
[420649309,1776424965746,-1000.0,8.338e-05,2]